Cogmind - Beta 16 @@@ ROGUE MODE // 2025.11.09 @ 21:12:46 Player: btrs Result: Destroyed by HX-RYT(R) with Subdweller Beam Cannon Performance ------------- Evolutions (0) 0 Regions Visited (2) 400 Robots Destroyed (23) 115 Value Destroyed (219) 219 Prototype IDs (12) 240 Alien Tech Used (0) 0 Bonus (0) 0 TOTAL SCORE: 974 Bonus ------- None Cogmind --------- Core Integrity 0/250 Matter 267/300 Energy 98/100 System Corruption 4% Temperature Cool (9) Movement Rolling (95) Location -10/Subcaves Parts ------- > --- POWER (1) -------- (None) > --- PROPULSION (2) --- Wheel Subdweller Monowheel > --- UTILITY (2) ------ Sensor Array > --- WEAPON (2) ------- Flail (fused) Heavy Hammer (fused) > --- INVENTORY (5) ---- Flight Unit Signal Interpreter EM Pulse Gun Slug Cannon Grenade Launcher Peak State ------------ > --- POWER ------------ Light Ion Engine > --- PROPULSION ------- Flight Unit > --- UTILITY ---------- Sensor Array Tower Shield > --- WEAPON ----------- Flail Heavy Hammer > --- INVENTORY -------- Signal Interpreter EM Pulse Gun Light Assault Rifle Grenade Launcher [Rating: 27] Favorites ----------- Power Light Ion Engine Engine Light Ion Engine Propulsion Light Treads Treads Light Treads Wheel Subdweller Monowheel Flight Unit Flight Unit Utility Sensor Array Device Sensor Array Storage High-capacity Storage Unit Protection Tower Shield Weapon Heavy Hammer Energy Gun EM Pulse Gun Ballistic Gun Assault Rifle Launcher Grenade Launcher Impact Weapon Heavy Hammer Build | -11 -10 -10 ------- Run | Yrd Mat Sub Slots Evolved . | . . . Power . | . . . Propulsion . | . . . Utility . | . . . Weapon . | . . . Parts Attached 22 | 7 11 4 Power 2 | 1 1 . Engine 2 | 1 1 . Core . | . . . Reactor . | . . . Propulsion 9 | 2 5 2 Treads 5 | 2 3 . Leg . | . . . Wheel 2 | . . 2 Hover . | . . . Flight 2 | . 2 . Utility 4 | 1 2 1 Device 1 | . 1 . Storage 2 | 1 1 . Processor . | . . . Hackware . | . . . Protection 1 | . . 1 Artifact . | . . . Weapon 7 | 3 3 1 Energy Gun 1 | 1 . . Energy Cannon . | . . . Ballistic Gun 3 | 2 1 . Ballistic Cannon . | . . . Launcher 1 | . 1 . Special Weapon . | . . . Impact Weapon 2 | . 1 1 Slashing Weapon . | . . . Piercing Weapon . | . . . Special Melee Weapon . | . . . Unidentified Prototypes . | . . . Corrupted Parts 2 | . 1 1 System Corruption 2 | . 1 1 Parts Lost 3 | . . 3 Power 1 | . . 1 Propulsion 1 | . . 1 Utility 1 | . . 1 Weapon . | . . . Highest Loss Streak 2 | . . 2 To Critical Strikes . | . . . Average Backups 6 | 1 8 4 Power . | . 1 . Propulsion 1 | . 4 . Utility . | . . 1 Weapon 3 | . 2 3 Tool/Special . | . . . Unused Backups 4 | . 2 2 Power 1 | . 1 . Propulsion 1 | . 1 . Utility 1 | . . 1 Weapon 1 | . . 1 Tool/Special . | . . . Average Slot Usage (%) 64 | . 85 50 Engine 10 | . 14 8 Treads 11 | . 27 . Wheel 1 | . . 2 Flight 6 | . . 10 Device 5 | . . 10 Storage 5 | . 14 . Protection 2 | . . 3 Energy Gun 2 | . 4 . Ballistic Gun 5 | . 14 . Launcher 2 | . 6 . Impact Weapon 9 | . 3 13 Peak Build Rating 27 | 6 10 27 Average Rating 12 | 4 7 16 On Entrance 4 | . 6 6 Avg Prop Armor Cover (%) 7 | . . 7 Naked Turns . | . . . Heaviest Build 50 | 14 50 47 Greatest Support 46 | 40 46 30 Greatest Overweight (x) 15 | . 1 15 Average Overweight (x) 1 | . . 1 Largest Inventory Capacity 20 | 8 20 5 Average Capacity 10 | 6 19 5 Most Carried 15 | 2 15 5 Average Carried 6 | . 8 4 Final Capacity 8 | 8 5 5 Final Carried 5 | 2 5 5 Class Distribution -------------------- 100% | Mutant Dominant Class ---------------- Mutant | -10/Materials Mutant | -10/Subcaves Resources | -11 -10 -10 ----------- Run | Yrd Mat Sub Matter Collected 742 | 151 387 204 Remotely . | . . . Salvage Created 525 | . 441 84 Parts 36 | . 26 10 Haulers Intercepted 1 | . 1 . Recyclers Shooed 2 | . 2 . Parts Field Recycled . | . . . Retrieved Matter . | . . . Parts Self-Destructed 9 | . . 9 Prevented . | . . . Parts Restored . | . . . Kills | -11 -10 -10 ------- Run | Yrd Mat Sub Combat Hostiles Destroyed 13 | . 9 4 Guns 3 | . 3 . AOE 9 | . 6 3 Classes Destroyed 8 | . 6 2 Worker 3 | . 3 . Builder 2 | . 2 . Hauler 1 | . 1 . Recycler 3 | . 3 . Watcher 1 | . 1 . Swarmer 12 | . 9 3 Cobbler 1 | . . 1 Subdweller 1 | . . 1 Best Kill Streak 8 | . 8 3 Combat Bots Only 5 | . 5 3 Max Kills in Single Turn 5 | . 5 2 Gunslinging . | . . . Exploded 3 | . 3 2 Melee . | . . . Uniques/NPCs Destroyed . | . . . Combat | -11 -10 -10 -------- Run | Yrd Mat Sub Hostile Shots Fired 126 | . 77 49 Missed 35 | . 18 17 Hits 91 | . 59 32 Projectile 91 | . 59 32 Critical Strikes 1 | . 1 . Damage Taken 1137 | . 492 645 Core 254 | . 82 172 Absorbed by Shields . | . . . Core Remaining (%) 100 | 100 . . Volleys Fired 37 | . 34 3 Largest 2 | . 2 1 Hottest 60 | . 60 30 Shots Fired 59 | . 56 3 Gun 50 | . 50 . Cannon . | . . . Launcher 9 | . 6 3 Special . | . . . Kinetic 29 | . 29 . Thermal . | . . . Explosive 9 | . 6 3 Electromagnetic 21 | . 21 . Robot Hit Streak 7 | . 7 . Robot Miss Streak 3 | . 3 . Penetration Max . | . . . Secondary Targets . | . . . Shots Hit Robots 45 | . 38 7 Core Hits 21 | . 17 4 Critical Kills . | . . . Critical Parts Destroyed 3 | . 2 1 Critical Strikes 3 | . 2 1 Smash 3 | . 2 1 Melee Attacks 24 | . 10 14 Impact 24 | . 10 14 Slashing . | . . . Piercing . | . . . Sneak Attacks 7 | . 6 1 Combat Hostiles . | . . . Follow-up Attacks 2 | . . 2 Damage Inflicted 1632 | . 1246 386 Guns 370 | . 370 . Cannons . | . . . Explosions 510 | . 397 113 Melee 752 | . 479 273 Ramming . | . . . Kinetic 203 | . 203 . Thermal 40 | . 40 . Explosive 470 | . 357 113 Electromagnetic 167 | . 167 . Impact 752 | . 479 273 Slashing . | . . . Piercing . | . . . Highest Corruption 4 | . 3 4 Average Corruption 2 | . 2 3 Corruption Purged . | . . . Corruption Blocked . | . . . Effects 45 | . 6 39 Message Errors 10 | . 1 9 Matter Fused 11 | . 1 10 Heat Flow Errors 5 | . 1 4 Energy Discharges 9 | . 3 6 Parts Fused 2 | . . 2 Data Loss (minor) 4 | . . 4 Data Loss (major) 2 | . . 2 Alerts 2 | . . 2 Overload Shots . | . . . Overflow Damage 275 | . 221 54 Projectiles . | . . . Explosions 56 | . 45 11 Melee 219 | . 176 43 Knockbacks 1 | . 1 . Impact 1 | . 1 . Kinetic . | . . . Secondary . | . . . Self-Inflicted Damage 46 | . 18 28 Shots 2 | . 1 1 Rammed . | . . . Targets Rammed . | . . . Kicked . | . . . Crushed . | . . . Highest Temperature 247 | . 185 247 Average Temperature 96 | . 99 95 Received Heat Transfer 150 | . . 150 Siege Activations . | . . . Martial Activations . | . . . Shielding Activations . | . . . Robots Disrupted . | . . . Combat Hostiles . | . . . Robots Corrupted 5 | . 4 1 Combat Hostiles 1 | . . 1 Parts Fried 5 | . 4 1 Impact Corruptions 6 | . 5 1 Robots Melted . | . . . Combat Hostiles . | . . . Parts Melted . | . . . Heat Transferred 50 | . 50 . Parts Sabotaged . | . . . Parts Stolen . | . . . Parts Stripped . | . . . Power Chain Reactions 1 | . 1 . Alert | -11 -10 -10 ------- Run | Yrd Mat Sub Maximum Alert Level . | . . . Low Security (%) 100 | 100 100 . Level 1 . | . . . Level 2 . | . . . Level 3 . | . . . Level 4 . | . . . Level 5 . | . . . High Security . | . . . Max Security . | . . . Peak Influence 194 | . 194 . Initial . | . . . Average 46 | . 48 . Influence Increases 438 | . 338 100 Destroy 0b10 Robot/C 240 | . 180 60 Destroy 0b10 Robot/NC 50 | . 50 . Destroy Leader 44 | . 34 10 Disable Machine 15 | . 15 . Destroy Structure 44 | . 44 . Lose Combat Pursuer 45 | . 15 30 Influence Decreases 438 | . 338 100 Time Decay 438 | . 338 100 Squads Dispatched . | . . . Investigation . | . . . Extermination . | . . . Reinforcement . | . . . Assault . | . . . Garrison . | . . . Intercept . | . . . Searches Triggered . | . . . Construction Impeded . | . . . Haulers Reinforced . | . . . Active Scanning Responses . | . . . Cargo Convoy Interrupts . | . . . Stealth | -11 -10 -10 --------- Run | Yrd Mat Sub Distress Signals . | . . . Communications Jammed . | . . . Distress Signals . | . . . Times Spotted 28 | . 16 12 Peak Tracking Total 8 | . 8 4 Tactical Retreats 3 | . 1 2 Traps | -11 -10 -10 ------- Run | Yrd Mat Sub Traps Triggered 3 | . 3 . Indirectly . | . . . Trap Hack Attempts . | . . . Triggered . | . . . Disarmed . | . . . Reprogrammed . | . . . Reused . | . . . Traps Extracted . | . . . Installed . | . . . Triggered . | . . . Machines | -11 -10 -10 ---------- Run | Yrd Mat Sub Machines Disabled 4 | . 3 1 Max in Single Turn 2 | . 2 1 Machines Repaired . | . . . Machines Dismantled . | . . . Machines Sabotaged . | . . . Overloaded Fab Kills . | . . . Hacking | -11 -10 -10 --------- Run | Yrd Mat Sub Machines Accessed 4 | . 3 1 Terminals 3 | . 3 . Fabricators . | . . . Repair Stations . | . . . Recycling Units . | . . . Scanalyzers . | . . . Garrison Access . | . . . Total Hacks 17 | . 8 9 Successful 11 | . 2 9 Failed 6 | . 6 . Catastrophic . | . . . Database Lockouts . | . . . Manual 3 | . 3 . Terminals 8 | . 8 . Fabricators . | . . . Repair Stations . | . . . Recycling Units . | . . . Scanalyzers . | . . . Garrison Access . | . . . Terminal Hacks 11 | . 2 9 Record 8 | . . 8 Registered Components 1 | . 1 . Zone Layout 1 | . 1 . Proto ID Catalog 1 | . . 1 Fabricator Hacks . | . . . Repair Station Hacks . | . . . Recycling Unit Hacks . | . . . Scanalyzer . | . . . Garrison Access Hacks . | . . . Unauthorized Hacks . | . . . Terminals . | . . . Fabricators . | . . . Repair Stations . | . . . Recycling Units . | . . . Scanalyzers . | . . . Garrison Access . | . . . Data Cores Recovered . | . . . Used . | . . . Hacking Detections 1 | . 1 . Full Trace Events 1 | . 1 . Feedback Events . | . . . Feedback Blocked . | . . . Robot Schematics Acquired . | . . . Robots Built . | . . . Authchips . | . . . Time . | . . . Total Robot Build Rating . | . . . Part Schematics Acquired . | . . . Parts Built . | . . . Authchips . | . . . Time . | . . . Total Part Build Rating . | . . . Part Studies Acquired . | . . . Parts Repaired . | . . . Time . | . . . Parts Recycled . | . . . Recycled Matter . | . . . Retrieved Matter . | . . . Retrieved Components . | . . . Parts Scanalyzed . | . . . Part Schematics Acquired . | . . . Parts Damaged . | . . . Bothacking | -11 -10 -10 ------------ Run | Yrd Mat Sub Used RIF Installer . | . . . Robots Hacked . | . . . Non-combat . | . . . Combat . | . . . Robot Hacks Applied . | . . . Relay Couplers Released . | . . . Fabnet Peak Effective % . | . . . Robots Rewired . | . . . Allies Hacked . | . . . Hacks Repelled . | . . . Allies | -11 -10 -10 -------- Run | Yrd Mat Sub Total Allies . | . . . Largest Group . | . . . Highest-Rated Group . | . . . Highest-Rated Ally . | . . . Total Orders . | . . . Ally Attacks . | . . . Total Damage . | . . . Kills . | . . . Allies Corrupted . | . . . Allies Melted . | . . . Intel | -11 -10 -10 ------- Run | Yrd Mat Sub Active Infowar (turns) 1825 | . 8 1817 Sensors 1825 | . 8 1817 Robot Analysis Total . | . . . Derelict Logs Recovered 1 | . . 1 Drone Launches . | . . . Drone Recoveries . | . . . Exploration | -11 -10 -10 ------------- Run | Yrd Mat Sub Turns Passed 3194 | 65 1287 1842 Spaces Moved 1509 | 36 476 997 Core 98 | 4 . 94 Treads 506 | 32 474 . Legs . | . . . Wheels 166 | . . 166 Hover . | . . . Flight 739 | . 2 737 Fastest Speed 37 | 50 37 37 Average Speed 178 | 147 236 152 Slowest Speed 840 | 160 240 840 Overloaded Moves . | . . . Propulsion Burnouts . | . . . Robots Hopped . | . . . Potential Cave-ins . | . . . Cave-ins Triggered . | . . . Exploration Rate (%) 41 | 3 83 39 Regions Visited 2 Branch Regions 1 Pre-discovered Areas 1 | . . 1 Known Exits Taken . | . . . Unknown Exits Taken 2 | 1 1 . Scrap Searched 1 | . . 1 Spaces Dug 3 | . . 3 Terrain Destroyed 70 | . 42 28 Melee 3 | . . 3 Projectile . | . . . AOE 67 | . 42 25 Terrain Rammed . | . . . Walls Destroyed . | . . . Machines Disabled . | . . . Actions | -11 -10 -10 --------- Run | Yrd Mat Sub Total 1901 | 44 560 1297 Wait 272 | 1 2 269 Move 1507 | 35 475 997 Hop . | . . . Pick Up 11 | 1 8 2 Fast Attach 13 | 6 3 4 Attach 5 | . 1 4 Detach 5 | . 2 3 Swap 15 | 1 13 1 Drop 14 | . 12 2 Fire 37 | . 34 3 Melee 22 | . 10 12 Ram . | . . . Kick . | . . . Crush . | . . . Escape Stasis . | . . . Rewire . | . . . Trap . | . . . Miscellaneous . | . . . Route ------- -11/Scrapyard -10/Materials (discovered 4 exits: [*Mat] / [*Min x2] / *Sub) -10/Subcaves History --------- Turn | Location | Event 7 | -11/Scrapyard | Discovered new exit (range 16) 66 | -11/Scrapyard | Entered Materials 301 | -10/Materials | Build established: Mutant 374 | -10/Materials | Discovered new exit (range 5) 506 | -10/Materials | Discovered new exit (range 13) 900 | -10/Materials | Discovered new exit (range 3) 903 | -10/Materials | Discovered new exit (range 7) 1353 | -10/Materials | Entered Subcaves 1363 | -10/Subcaves | Learned location of Zion (-7) 1363 | -10/Subcaves | Met a Zionite searching for "candidates" 1842 | -10/Subcaves | Core integrity fell below 50% 2004 | -10/Subcaves | Visited 4L-MR0's lab 2019 | -10/Subcaves | Found Tower Shield 2020 | -10/Subcaves | Attached Tower Shield, gained temporary slots: Power, Propulsion x2, Utility x2, Weapon x2 2950 | -10/Subcaves | Shifting Twisted Machinery released Ripper 2958 | -10/Subcaves | Shifting Twisted Machinery released Sub. Laser 3106 | -10/Subcaves | Learned Materials stockpile data 3118 | -10/Subcaves | Ambushed by Subdwellers from Twisted Machinery 3119 | -10/Subcaves | Core integrity fell below 20% 3195 | -10/Subcaves | Destroyed by HX-RYT(R) with Subdweller Beam Cannon Last Messages --------------- 03043_ System corrupted: IFF burst signal emitted. 03063_ System corrupted: Heat flow error (+190). 03069_ Sneak attack on FM-W6T(O). 03069_ FM-W6T(O) cries out in pain. [Achievement: Art Critic] 03069_ FM-W6T(O) destroyed. 03071_ Acquired 29 matter. 03074_ Acquired Wheel. 03075_ Acquired Flight Unit. 03078_ Dropped Lgt. Assault Rifle. 03078_ Acquired Slug Cannon. 03102_ System corrupted: Matter fused (-7). 03106_ Acquired derelict log, extracted data. Data stored: Materials stockpile data. 03118_ C9-KSF(R) emerges from the Twisted Machinery. 03126_ System corrupted: Heat flow error (+145). 03157_ Subatomizers dissect the Cobbler Unit. 03188_ HX-RYT(R): "SUBHATE!" Map ----- +----------------------------------------------------+ | ???????????????????????????????????????????????? | | ???????????????????????????????????????????????? | | #??????????????????????????????????????????????? | | #??????????????????????????????????????????????? | | #????????????????????? ?????#?##???????????????? | | #????????????????????? ???? # #???????????????? | | ?????????????????????" ???? #???????????????? | | ???????????????????## ???? ##??????????????? | | ???????????????????# ????# ???????????????? | | ??????????????????? " ?????# ???????????????? | | #???? ??????????? " ?????# ##??????????????? | | ?? "?????????" ?????# #??????????????? | | ??? ##???????# #?????# #??????????????? | | ? ?? "???????# ##???? #??????????????? | | ? #??? """?????### #?#### #??????????????? | | #? ?##???#""#????##"" ### #??????????????? | | ##?#?????# #???##" """ ##??????????????? | | ####???## ???# [ ## #??????????????? | | ##?## ""#?### "####### ##??????????????? | | #?#""" ### # &&"#??#### #??????????????? | | #?#" & #??# ## #??????????????? | | ### #?# " &###??# #??????????????? | | #?##### "# ##?### ##??????????????? | | ##???## #### "##" ##??????????????? | | #????# #??## R " #??????????????? | | ????## ###?##"" "/ @ """ #??????????????? | | ???## = #######""" R## #??????????????? | | #?## #??#### ## #??????????????? | | ### "#????#; ## #??????????????? | | ## ""#???## ## #??????????????? | | ## " "#???# ## "#??????????????? | | ### "" ##??## ###" "#??????????????? | | #?# " ##??##! "##""" #??????????????? | | ### ##"##???#" R" #??????????????? | | #?# ###?####??# #??????????????? | | #### #???## ##?### ##?????????????? | | ### ##??# ####### #?????????????? | | # ##?# ???# # #### #?????????????? | | ####??# #???# ## ##?????????????? | | ## ???# #??## [ #??????????????? | | ##?# #### ## ! #??????????????? | | ### # ## ## #??????????????? | | ## ##??????????????? | | ## ## ##??????????????? | | ## # ## # ## ### #??????????????? | | ???# ######## ##### #??????????????? | | ?### #?????## ### ##??????????????? | | ## # ##?????# ## #??????????????? | | # ##??????# ## ##??????????????? | | # ##???????# ### #???????????????? | +----------------------------------------------------+ Best States ------------- Heat Dissipation 25 Energy Generation 10 Energy Capacity 250 Matter Stores 300 Matter Capacity 300 Sight Range 16 Robot Scan Range 14 Terrain Scan Density 10 Armor Coverage 2000 Evasion (%) 62 Recoil Reduction 2 Item Schematics ----------------- None Robot Schematics ------------------ None Fabricated ------------ Nothing Repaired ---------- Nothing Studied --------- None Alien Tech Used ----------------- None Achievements -------------- Art Critic Mistaken Identity Challenges ------------ None Game ------ Seed bbb Manual? 1 Play Time 00:24:41 Cumulative 99.2 hours Start 2025.11.09 @ 20:51:26 End 2025.11.09 @ 21:12:46 Sessions 1 Manual Loads 0 Difficulty Rogue Special Mode None Game No. 64 Rogue 58 Adventurer 6 Explorer 0 Win Type - Total 3 Types 3/0/0/0/0/0/0/0/0/0 Lore% 38 Gallery% 44 Achievement% 30 Wizard Run 0 Options --------- Layout 2 ASCII 1 Keyboard 1 Movement Vi Keybinds 0 Fullscreen 1 Font 32/SmallcapsGlow Map View 50x44 Zoom Use 0% Tactical HUD 1 Map Filters NONE Filters NONE Steam 1 RUN: fe59c47a-aead-4b69-9c34-c45f2ab9c637